[Event "VII GM Barcelona CC 2022"]
[Site "Barcelona"]
[Date "2022.05.13"]
[Round "6.5"]
[White "Gines Esteo, Pedro Antonio"]
[Black "Alvarez Albiol, Victor"]
[Result "1/2-1/2"]
[ECO "D05"]
[WhiteElo "2434"]
[BlackElo "2328"]
[Annotator "TA"]
[PlyCount "130"]
[EventDate "2022.05.10"]
[EventType "tourn"]
[EventCountry "ESP"]
[SourceTitle "playchess.com"]
[Source "ChessBase"]
[SourceQuality "1"]
[TimeControl "5400+30"]

{[%evp 15,130,14,21,26,18,18,23,35,47,45,46,51,70,64,64,57,50,64,63,56,62,0,0,0,0,0,0,0,0,-47,-40,-103,0,0,178,128,264,237,275,0,0,0,0,0,0,0,0,0,0,0,0,0,104,-68,0,0,0,0,0,0,0,0,0,0,0,0,0,0,3,3,18,22,54,38,45,45,43,43,45,45,83,7,7,0,0,0,0,0,0,0,0,0,0,0,0,0,0,0,0,0,0,0,0,0,0,0,0,0,0,0,0,0,0,0,0,0,0]} 1. d4 {[%emt 0:11:36]} Nf6 {[%emt 0:00:09]} 2. Nf3 {[%emt 0:00:13]} e6 {[%emt 0:00:18]} 3. e3 {[%emt 0:01:22]} c5 {[%emt 0:04:19]} 4. Bd3 {[%emt 0:02:06]} d5 {[%emt 0:00:40]} 5. b3 {[%emt 0:01:47]} Nc6 {[%emt 0:00:38]} 6. Bb2 {[%emt 0:00:23]} Bd6 {[%emt 0:07:26]} 7. O-O {[%emt 0:02:54]} O-O {[%emt 0:00:12]} 8. a3 {[%emt 0:08:40]} Qc7 {[%emt 0:04:50]} 9. dxc5 {[%emt 0:03:27] D05: Colle System with ...e6.} Bxc5 {[%emt 0:00:20]} 10. c4 {[%emt 0:11:45]} dxc4 {[%emt 0:03:06]} 11. Bxc4 {[%emt 0:00:06] [#] White has an edge.} Be7 $146 {[%emt 0:08:23]} ({Predecessor:} 11... Rd8 12. Qc2 Be7 13. b4 Bd7 14. Nbd2 Rac8 15. Rac1 Qb8 16. Qb1 h6 17. Nb3 a6 {½-½ (79) Bluebaum,M (2670)-Radjabov,T (2765) chess24.com INT 2021}) 12. Nbd2 {[%emt 0:01:59]} a6 {[%emt 0:04:29]} 13. Rc1 {[%emt 0:01:44]} Bd6 {[%emt 0:07:16]} 14. Bd3 {[%emt 0:08:21]} Qe7 {[%emt 0:05:05]} 15. Nc4 {[%emt 0:11:15]} Bc7 {[%emt 0:00:34]} 16. Nfe5 {[%emt 0:01:59]} Nxe5 {[%emt 0:03:47]} 17. Nxe5 {[%emt 0:00:08]} Bd6 {[%emt 0:04:53]} 18. Qf3 {[%emt 0:12:02] White is much more active. The black rooks are badly placed.} (18. b4 $14) 18... Bxa3 $11 {[%emt 0:04:31]} 19. Bxa3 {[%emt 0:00:19]} Qxa3 {[%emt 0:00:07]} 20. Rfd1 {[%emt 0:00:21]} Qxb3 {[%emt 0:07:55]} 21. g4 {[%emt 0:02:38] Black must now prevent g5.} Nd7 {[%emt 0:08:33]} 22. Qh3 {[%emt 0:07:48]} g6 $15 {[%emt 0:03:31]} 23. Nf3 {[%emt 0:01:48][%cal Be5f3,Bf3d4,Bd4c6][%mdl 32]} Kg7 {[%emt 0:01:55]} (23... a5 $17) 24. g5 $11 {[%emt 0:00:54]} b5 $2 {[%emt 0:04:28]} (24... Kg8 $11) 25. Be4 {[%emt 0:00:47]} ({White should play} 25. Nd4 $18 Qa3 26. Be4) 25... Rb8 {[%emt 0:01:53]} (25... Ra7 $16 {was necessary.}) 26. Nd4 {[%emt 0:00:30]} Qa3 {[%emt 0:02:33] [#]} 27. Qh6+ $2 {[%emt 0:02:27]} ({White should try} 27. Nxe6+ $1 $18 {[%mdl 512]} fxe6 28. Rxc8 $1 {[%mdl 512]} Rbxc8 29. Rxd7+ Rf7 30. Qxe6 Qc1+ 31. Kg2 Rxd7 32. Qxd7+ Kg8 33. Qe6+ Kf8 34. Qf6+ Ke8 35. Qh8+ Kd7 36. Qxh7+ Kd6 37. Qxg6+ Kc5 38. Qxa6) 27... Kg8 $1 {[%emt 0:01:00]} 28. Nc6 {[%emt 0:02:25]} Rb6 {[%emt 0:00:44][%cal Oc8b7]} 29. Ra1 {[%emt 0:00:33]} Qc5 {[%emt 0:01:16]} 30. Rac1 {[%emt 0:00:01]} Qa3 {[%emt 0:00:16][%cal Oc8b7]} 31. Rc2 {[%emt 0:02:05]} Rxc6 {[%emt 0:01:40]} 32. Bxc6 {[%emt 0:00:40]} (32. Rxc6 Bb7 33. Rcd6 (33. Rxd7 $2 Bxc6 34. Rd1 Bxe4 $19) 33... Bxe4 $17) 32... Ne5 {[%emt 0:00:39] Hoping for ...Qa4.} 33. Bg2 {[%emt 0:01:21]} b4 {[%emt 0:01:25]} (33... Nc4 $11 {keeps the balance.}) 34. Rc7 $2 {[%emt 0:00:31] [#]} (34. Qh4 $16) 34... b3 {[%emt 0:00:58]} (34... Bd7 $1 $15 35. h3 (35. Rcxd7 Nxd7 36. Rxd7 Qa1+ 37. Bf1 b3 $17) (35. Rdxd7 Qa1+ 36. Bf1 b3 $17) (35. Qh4 Ba4) 35... Bb5) 35. Qh4 $1 {[%emt 0:00:24] Threatens to win with Qd4.} ({Wrong is} 35. f4 $2 {[#]} b2 $1 36. fxe5 Qxe3+ 37. Kh1 Qd3 $3 $19 {[%mdl 512]}) 35... b2 {[%emt 0:01:05][%cal Oa3d6] And now ...Qd6! would win.} 36. Qd4 {[%emt 0:00:25] Against Qd6} Qa2 $1 {[%emt 0:01:55]} 37. Be4 {[%emt 0:00:34] Inhibits b1Q.} Nf3+ {[%emt 0:01:55]} 38. Bxf3 {[%emt 0:00:02]} b1=Q {[%emt 0:00:08]} 39. Rxb1 {[%emt 0:00:04] Really sharp!} Qxb1+ {[%emt 0:00:05]} 40. Kg2 {[%emt 0:00:11]} Qf5 {[%emt 0:00:56]} 41. Qf6 {[%emt 0:01:21]} e5 {[%emt 0:02:19]} 42. Qxf5 {[%emt 0:00:31]} Bxf5 {[%emt 0:00:37][%mdl 4096] Endgame KRB-KRB} 43. Bd5 {[%emt 0:00:35]} Kg7 {[%emt 0:00:30]} 44. Ra7 {[%emt 0:00:50]} Bd3 {[%emt 0:00:28]} 45. Kg3 {[%emt 0:00:23]} h6 {[%emt 0:01:44]} 46. h4 {[%emt 0:00:35]} hxg5 {[%emt 0:00:06]} 47. hxg5 {[%emt 0:00:06]} a5 {[%emt 0:00:43]} 48. e4 {[%emt 0:01:00]} (48. Rxa5 $16 f5 49. Ra7+ Kh8 50. Re7) 48... a4 {[%emt 0:00:57] The position is equal.} 49. f4 {[%emt 0:00:18]} exf4+ {[%emt 0:00:17]} 50. Kxf4 {[%emt 0:00:01]} Bc2 {[%emt 0:00:27]} 51. e5 {[%emt 0:01:03] e6 is the strong threat.} Bb3 {[%emt 0:00:16]} 52. Bxb3 {[%emt 0:00:11]} axb3 {[%emt 0:00:01] KR-KR} 53. Rb7 {[%emt 0:00:06] Inhibits Rb8.} Re8 {[%emt 0:00:47]} 54. Rxb3 {[%emt 0:00:06]} Re7 {[%emt 0:00:36]} 55. Ke4 {[%emt 0:00:30]} Ra7 {[%emt 0:00:08]} 56. Rb4 {[%emt 0:00:05]} Rd7 {[%emt 0:00:27]} 57. Rb6 {[%emt 0:01:18]} Ra7 {[%emt 0:00:41]} 58. Kd5 {[%emt 0:00:32]} Ra1 {[%emt 0:01:00]} 59. Rb7 {[%emt 0:00:29]} Ra6 {[%emt 0:00:28]} 60. Rc7 {[%emt 0:00:20]} Kg8 {[%emt 0:00:47]} 61. Rc8+ {[%emt 0:01:09]} Kg7 {[%emt 0:00:03]} 62. Rc7 {[%emt 0:00:05]} Kg8 {[%emt 0:00:05]} 63. Rc6 {[%emt 0:01:02]} Ra1 {[%emt 0:00:14]} 64. Rc8+ {[%emt 0:00:42]} Kg7 {[%emt 0:00:03]} 65. Rc7 {[%emt 0:00:07]} Rd1+ {[%emt 0:00:48] Weighted Error Value: White=0.18 (very precise) /Black=0.16 (very precise)} 1/2-1/2

[Event "VII GM Barcelona CC 2022"]
[Site "Barcelona"]
[Date "2022.05.13"]
[Round "7.1"]
[White "Alvarez Albiol, Victor"]
[Black "Pajeken, Jakob Leon"]
[Result "1/2-1/2"]
[ECO "B51"]
[WhiteElo "2328"]
[BlackElo "2398"]
[Annotator "TA"]
[PlyCount "26"]
[EventDate "2022.05.10"]
[EventType "tourn"]
[EventCountry "ESP"]
[SourceTitle "playchess.com"]
[Source "ChessBase"]
[SourceQuality "1"]
[TimeControl "5400+30"]

{[%evp 11,26,8,9,6,9,21,16,16,0,0,12,7,6,0,11,0,6]} 1. e4 {[%emt 0:01:09]} c5 {[%emt 0:00:14]} 2. Nf3 {[%emt 0:00:07]} d6 {[%emt 0:00:02]} 3. Bb5+ {[%emt 0:00:12]} Nd7 {[%emt 0:00:04]} 4. d4 {[%emt 0:00:19]} cxd4 {[%emt 0:00:03]} 5. Qxd4 {[%emt 0:00:06]} a6 {[%emt 0:00:07]} 6. Bxd7+ {[%emt 0:00:05]} Bxd7 {[%emt 0:00:02] The position is equal.} 7. c4 {[%emt 0:00:10] B51: Sicilian: Moscow Variation (3 Bb5+) without 3...Bd7.} e5 {[%emt 0:00:07]} 8. Qd3 {[%emt 0:00:09]} b5 {[%emt 0:00:06]} 9. Nc3 {[%emt 0:00:10][%cal Rc4b5]} bxc4 {[%emt 0:00:03]} 10. Qxc4 {[%emt 0:00:07]} Be6 {[%emt 0:00:04]} 11. Qc6+ {[%emt 0:00:08] 11.Qc6+ scores better than 11.Qd3.} Bd7 {[%emt 0:00:04]} 12. Qc4 {[%emt 0:00:05] [#]} Be6 $146 {[%emt 0:00:04]} ({Predecessor:} 12... Qc8 13. Qd3 Qb7 14. O-O Rc8 15. Rd1 h6 16. b3 Nf6 17. Ba3 Be6 18. Qe3 Qb8 19. Rd3 Be7 20. Rad1 {1-0 (64) Zhou,J (2585)-Li,E (2403) San Jose 2022}) 13. Qc6+ {[%emt 0:00:05]} Bd7 {[%emt 0:00:03] A rather calm draw.  Weighted Error Value: White=0.04 (flawless) /Black=0.00 (flawless)} 1/2-1/2

[Event "VII GM Barcelona CC 2022"]
[Site "Barcelona"]
[Date "2022.05.13"]
[Round "7.2"]
[White "Gonzalez Perez, Arian"]
[Black "Gines Esteo, Pedro Antonio"]
[Result "0-1"]
[ECO "D24"]
[WhiteElo "2415"]
[BlackElo "2434"]
[Annotator "TA"]
[PlyCount "57"]
[EventDate "2022.05.10"]
[EventType "tourn"]
[EventCountry "ESP"]
[SourceTitle "playchess.com"]
[Source "ChessBase"]
[SourceQuality "1"]
[TimeControl "5400+30"]

{[%evp 9,57,0,47,48,47,37,44,31,35,39,40,35,67,48,48,0,0,0,50,0,0,0,0,0,-12,-189,-180,-168,-154,-166,-152,-214,-117,-115,-127,-107,-97,-100,-87,-235,-241,-225,-220,-221,-216,-314,-288,-514,-494,-470]} 1. d4 {[%emt 0:02:02]} Nf6 {[%emt 0:02:23]} 2. Nf3 {[%emt 0:00:39]} e6 {[%emt 0:01:43]} 3. c4 {[%emt 0:03:46]} d5 {[%emt 0:00:32]} 4. Nc3 {[%emt 0:01:17]} dxc4 {[%emt 0:01:25]} 5. e4 {[%emt 0:02:08][%cal Be2e4,Be4e5][%mdl 32]} b5 {[%emt 0:00:43]} (5... Bb4 $11) 6. e5 $14 {[%emt 0:03:28] D24: Queen's Gambit Accepted: 3 Nf3 Nf6 4 Nc3.} Nd5 {[%emt 0:00:10]} 7. Nxb5 {[%emt 0:00:19]} Nb6 {[%emt 0:00:08]} 8. Be2 {[%emt 0:01:58] White is slightly better.} Bb7 {[%emt 0:00:14]} 9. O-O {[%emt 0:01:02]} Be7 {[%emt 0:01:30]} 10. a4 {[%emt 0:07:47] [#]} Qd7 $146 {[%emt 0:01:51]} ({Predecessor:} 10... a5 11. Be3 Bd5 12. Rc1 c6 13. Na3 Bxa3 14. bxa3 Qe7 15. Rc3 N8d7 16. Nd2 O-O 17. Nxc4 Nxc4 18. Bxc4 {½-½ (46) Matta,V (2305)-Stefansson,V (2484) Arandjelovac 2022}) 11. Be3 {[%emt 0:05:52]} O-O {[%emt 0:08:52]} 12. Nc3 {[%emt 0:01:26]} (12. Qb1 $14 {was preferrable.}) 12... a5 $1 $11 {[%emt 0:00:54]} 13. Nd2 {[%emt 0:03:53]} Na6 {[%emt 0:02:43]} ({Black should try} 13... Rd8 $11) 14. Bf3 {[%emt 0:00:46]} (14. Re1 $14) 14... Bxf3 {[%emt 0:17:01]} 15. Qxf3 {[%emt 0:03:55]} Nb4 {[%emt 0:00:53]} 16. Nde4 {[%emt 0:01:53][%cal Oe4f6]} Kh8 {[%emt 0:03:15]} 17. Bg5 $2 {[%emt 0:18:00] [#]} (17. Qd1 $11 {and White has nothing to worry.}) 17... Bxg5 $1 $19 {[%emt 0:15:25]} 18. Nxg5 {[%emt 0:00:19]} h6 {[%emt 0:00:16]} 19. Nce4 {[%emt 0:06:52][%cal Of1d1]} Qxd4 {[%emt 0:05:13] White must now prevent ...Nd3.} (19... hxg5 20. Nf6 gxf6 21. exf6 Kg8 22. Qh5 Qd5 23. Qh6) 20. Rae1 {[%emt 0:10:56]} Nd3 {[%emt 0:08:56]} (20... hxg5 $2 21. Qh5+ Kg8 22. Nxg5 $18) ({Worse is} 20... Nxa4 21. Nxf7+ Rxf7 22. Qxf7 $14) (20... Qxb2 21. Re2 Qd4 22. Nxf7+ Rxf7 23. Qxf7 $11) (20... Kg8 $19 21. Qf4 Rad8) 21. Nxf7+ $17 {[%emt 0:02:19] [#]} Rxf7 $1 {[%emt 0:00:43][%mdl 512]} 22. Qxf7 {[%emt 0:00:05]} Nxe1 {[%emt 0:00:11]} 23. Rxe1 {[%emt 0:00:38][%cal Oe4f6]} Qxe5 {[%emt 0:00:12]} 24. f4 {[%emt 0:05:02]} (24. Re2 $17) 24... Qxb2 $19 {[%emt 0:01:40]} 25. Qxe6 {[%emt 0:03:26]} Qd4+ $40 {[%emt 0:05:37][%mdl 128] Black has strong attack.} 26. Kh1 {[%emt 0:03:55]} Rf8 {[%emt 0:03:38] Hoping for ...Nd5.} ({Not} 26... Nxa4 27. Ng5 Qxf4 28. Qe8+ Qf8 29. Nf7+ Kg8 30. Nxh6+ gxh6 31. Qxa4 $11) 27. g3 {[%emt 0:07:16]} (27. Qe7 $142 Nd7 28. Ng3) 27... c3 {[%emt 0:04:46]} ({Don't blunder} 27... Nxa4 $2 28. Qe7 Qd8 29. Qa3 $17) 28. Qe7 $2 {[%emt 0:01:04]} (28. Qe5 {is the only way for White.} Qxe5 29. fxe5) 28... Nd7 {[%emt 0:00:24] ...Rb8 is the strong threat.} 29. Kg2 {[%emt 0:02:57] Weighted Error Value: White=0.46/Black=0.09 (flawless)} 0-1

[Event "VII GM Barcelona CC 2022"]
[Site "Barcelona"]
[Date "2022.05.13"]
[Round "7.3"]
[White "Movsziszian, Karen"]
[Black "Rodriguez Lopez, Rafael"]
[Result "1/2-1/2"]
[ECO "A09"]
[WhiteElo "2467"]
[BlackElo "2176"]
[Annotator "TA"]
[PlyCount "139"]
[EventDate "2022.05.10"]
[EventType "tourn"]
[EventCountry "ESP"]
[SourceTitle "playchess.com"]
[Source "ChessBase"]
[SourceQuality "1"]
[TimeControl "5400+30"]

{[%evp 11,139,8,0,0,0,0,0,0,0,-11,0,0,0,0,0,-26,-26,-16,-27,-28,-12,-8,-8,-18,-13,-32,-10,-62,-80,-64,-73,-72,-37,-70,-65,-235,-141,-150,-142,-142,-138,-145,-118,-158,-152,-155,-155,-150,-123,-142,-136,-162,-149,-183,-179,-212,-157,-222,-233,-227,-196,-208,-103,-101,-104,-99,-96,-97,-69,-104,-83,-114,-114,-122,-69,-64,-64,-137,-133,-137,-88,-88,-8,-8,-8,-10,-10,-10,-8,-8,-8,-8,-8,-8,-8,-8,-8,-8,-8,-8,-8,-8,-8,-8,-8,-8,-8,-8,-8,-8,-8,-8,-8,-8,-8,-8,-8,-8,-8,-8,-8,-8,0,-8,-8,-8,0,0,0,-8]} 1. g3 {[%emt 0:01:58]} e5 {[%emt 0:01:00]} 2. Bg2 {[%emt 0:00:14]} d5 {[%emt 0:00:07]} 3. d3 {[%emt 0:00:02]} Nf6 {[%emt 0:00:47]} 4. Nf3 {[%emt 0:00:14]} Nc6 {[%emt 0:01:08]} 5. O-O {[%emt 0:01:28]} a5 {[%emt 0:01:14]} 6. c4 {[%emt 0:02:43]} d4 {[%emt 0:00:11]} 7. e3 {[%emt 0:01:06] A09: Réti Opening: 1 Nf3 d5 2 c4.} Bc5 {[%emt 0:00:07]} 8. exd4 {[%emt 0:00:14]} Bxd4 {[%emt 0:00:09]} (8... exd4 9. Re1+ Kf8 10. Bf4 $16) 9. Nxd4 {[%emt 0:04:25]} Nxd4 {[%emt 0:00:05]} 10. Re1 {[%emt 0:01:43]} O-O {[%emt 0:00:06]} 11. Nc3 {[%emt 0:00:57]} Re8 {[%emt 0:01:49]} 12. h3 {[%emt 0:13:41] Inhibits Bg4.} c6 {[%emt 0:00:26]} 13. Be3 {[%emt 0:03:18]} Bf5 {[%emt 0:00:39][%cal Of5d3] [#]} 14. Bxd4 $146 {[%emt 0:10:49]} ({Predecessor:} 14. Qd2 Bxd3 15. Bxd4 Qxd4 16. b3 Rad8 17. Rad1 e4 18. Ne2 Qb6 19. Qb2 Bxc4 20. Rxd8 Rxd8 {½-½ (43) Lafortune,E (1956)-Verneuil,P (2191) Madiana 2016}) 14... Qxd4 {[%emt 0:00:51]} 15. Re3 {[%emt 0:00:45]} Rad8 {[%emt 0:00:49][%cal Rf5d3]} 16. Qb3 {[%emt 0:03:21]} Qa7 {[%emt 0:13:06]} (16... Bxd3 17. Rd1 (17. Qxb7 e4 $11) 17... a4 18. Qxb7 Qxc4 19. Qxc6 $14 (19. Bxc6 Rb8 $17)) 17. Rd1 {[%emt 0:03:43]} h6 {[%emt 0:01:39]} 18. Na4 {[%emt 0:03:20]} Rd4 {[%emt 0:10:10]} 19. Qb6 {[%emt 0:05:44]} (19. Nc3 $11) 19... Qxb6 $15 {[%emt 0:00:59]} 20. Nxb6 {[%emt 0:00:02]} e4 {[%emt 0:00:19][%cal Re4d3]} 21. g4 {[%emt 0:01:53]} Bg6 {[%emt 0:00:24][%cal Re4d3]} 22. f4 {[%emt 0:02:48]} exf3 {[%emt 0:02:04]} (22... Rxd3 23. Rexd3 exd3 24. f5 $14) (22... exd3 23. Rxe8+ Nxe8 24. f5 $11) 23. Rxf3 {[%emt 0:01:11]} ({Only move:} 23. Rxe8+ $15 Nxe8 24. Bxf3) 23... Re2 {[%emt 0:00:29]} 24. Rf2 {[%emt 0:01:27]} Re3 {[%emt 0:05:36]} (24... Rxd3 25. Rxd3 Bxd3 26. Rxe2 Bxe2 27. Kf2 $11) 25. Rfd2 {[%emt 0:06:08]} h5 {[%emt 0:09:23]} ({And not} 25... Rdxd3 26. Rxd3 Bxd3 27. b3 $17) (25... Bxd3 $2 26. Kf2 Re6 27. Rxd3 $18) 26. Kf2 {[%emt 0:00:06]} Re5 {[%emt 0:00:19]} ({Stronger than} 26... Rdxd3 27. Rxd3 Rxd3 28. Rxd3 Bxd3 29. Ke3 $15) 27. gxh5 {[%emt 0:00:15]} Nxh5 {[%emt 0:00:29][%cal Bf6h5,Bh5f4,Bf4d3,Bd3b2][%mdl 32]} ({Not} 27... Bxh5 28. Re1 Rf5+ 29. Kg1 $17) 28. Re2 {[%emt 0:02:34]} Rxe2+ {[%emt 0:03:50]} 29. Kxe2 {[%emt 0:01:38] [#]} Rxd3 $1 {[%emt 0:00:15][%mdl 512]} 30. Rxd3 {[%emt 0:00:51]} Nf4+ {[%emt 0:00:22][%mdl 64] Deflection, Double Attack} 31. Kf3 {[%emt 0:04:37]} Nxd3 $19 {[%emt 0:00:10][%mdl 4096] Endgame KBN-KBN} 32. Ke3 {[%emt 0:00:15]} Nxb2 {[%emt 0:01:34]} 33. Kd4 {[%emt 0:02:08]} Nd3 {[%emt 0:00:48]} 34. Bf1 {[%emt 0:04:41]} (34. Nc8 $17 Nf4 35. Bh1) 34... Nb4 {[%emt 0:01:38]} 35. a4 {[%emt 0:03:04]} Kf8 {[%emt 0:00:42]} 36. c5 {[%emt 0:01:37]} Bc2 {[%emt 0:00:50]} (36... Nc2+ $19 {and Black stays clearly on top.} 37. Kc3 Ne3) 37. Nc4 $17 {[%emt 0:00:36]} Bxa4 {[%emt 0:00:34] ...Bb5 is the strong threat.} 38. Nxa5 {[%emt 0:00:01]} Ke7 {[%emt 0:05:49]} 39. Nxb7 {[%emt 0:00:01]} Nd5 {[%emt 0:00:56]} 40. Na5 {[%emt 0:00:39]} Nf4 {[%emt 0:00:32]} 41. Kc3 {[%emt 0:04:18]} Kd7 $1 {[%emt 0:00:43]} 42. h4 {[%emt 0:00:53]} Kc7 {[%emt 0:00:48]} ({Black should try} 42... f6 $17 43. Bd3 Nxd3 44. Kxd3 Ke6) 43. Bc4 $15 {[%emt 0:01:01]} f6 {[%emt 0:00:15]} 44. Bf7 {[%emt 0:00:35]} (44. Nb3 $1 $15) 44... Ng2 {[%emt 0:01:21]} 45. h5 {[%emt 0:00:03] [#]} Nf4 {[%emt 0:00:06]} (45... Bd1 $142 $1 46. Kd4 Nf4) 46. Kd2 $17 {[%emt 0:00:09] [#]} Bb5 {[%emt 0:00:44]} (46... Kd8 $1 $17 {[%cal Rd8e7] White must now prevent ...Ke7.} 47. Nb7+ Kd7) 47. Ke3 $11 {[%emt 0:00:22] The position is equal.} Nd3 {[%emt 0:00:22]} 48. Nb3 {[%emt 0:00:31]} Ne5 {[%emt 0:00:20]} 49. Be6 {[%emt 0:01:12]} Ba4 {[%emt 0:00:20]} 50. Nd4 {[%emt 0:00:08]} Bd1 {[%emt 0:00:55]} 51. Nf5 {[%emt 0:00:10]} Bxh5 {[%emt 0:00:22] aiming for ...g5.} 52. Nxg7 {[%emt 0:00:01]} Bg6 {[%emt 0:00:50]} 53. Bh3 {[%emt 0:00:46]} Nd3 {[%emt 0:04:27]} 54. Ne6+ {[%emt 0:01:21]} Kb8 {[%emt 0:00:55]} 55. Nd8 {[%emt 0:04:27]} Ne5 {[%emt 0:00:13]} 56. Kf4 {[%emt 0:00:25]} Kc7 {[%emt 0:01:13]} 57. Ne6+ {[%emt 0:00:04]} Kd7 {[%emt 0:01:14]} 58. Nd4+ {[%emt 0:00:09]} Ke7 {[%emt 0:00:07]} 59. Bg2 {[%emt 0:00:16]} Be8 {[%emt 0:00:19]} 60. Be4 {[%emt 0:00:49]} Bd7 {[%emt 0:00:06]} 61. Bg2 {[%emt 0:00:41]} Kf7 {[%emt 0:01:33]} 62. Be4 {[%emt 0:00:05]} Kg7 {[%emt 0:00:20]} 63. Bf5 {[%emt 0:00:31]} Bxf5 {[%emt 0:00:32]} 64. Kxf5 {[%emt 0:00:03] KN-KN} Kf7 {[%emt 0:00:22]} 65. Ne6 {[%emt 0:00:06]} Ke7 {[%emt 0:00:34]} 66. Nd4 {[%emt 0:00:01]} Kf7 {[%emt 0:00:50]} 67. Ne6 {[%emt 0:00:12]} Nd3 {[%emt 0:00:15]} 68. Nd8+ {[%emt 0:00:08]} Kg7 {[%emt 0:00:10]} 69. Ne6+ {[%emt 0:00:09]} Kf7 {[%emt 0:00:08]} 70. Nd8+ {[%emt 0:00:02] Whites escaped into a draw.  Weighted Error Value: White=0.16 (very precise) /Black=0.13 (very precise)} 1/2-1/2

[Event "VII GM Barcelona CC 2022"]
[Site "Barcelona"]
[Date "2022.05.13"]
[Round "7.4"]
[White "Sosa, Tomas"]
[Black "Munoz, Miguel"]
[Result "1/2-1/2"]
[ECO "B30"]
[WhiteElo "2552"]
[BlackElo "2421"]
[Annotator "TA"]
[PlyCount "99"]
[EventDate "2022.05.10"]
[EventType "tourn"]
[EventCountry "ESP"]
[SourceTitle "playchess.com"]
[Source "ChessBase"]
[SourceQuality "1"]
[TimeControl "5400+30"]

{[%evp 9,99,48,54,45,54,43,44,45,55,51,46,18,77,23,15,10,25,0,44,0,0,0,0,0,0,0,0,0,23,26,27,30,39,32,46,34,46,23,60,70,78,70,72,75,83,89,79,25,23,23,27,7,21,0,0,0,14,13,15,15,20,20,19,0,12,0,0,0,0,0,0,0,0,0,0,0,0,0,0,-8,-8,-8,-8,-8,-8,-8,-8,-879,-8,-8,-8,-8]} 1. e4 {[%emt 0:00:48]} c5 {[%emt 0:01:01]} 2. Nf3 {[%emt 0:00:10]} Nc6 {[%emt 0:00:06]} 3. Bb5 {[%emt 0:00:22]} e5 {[%emt 0:00:39]} 4. O-O {[%emt 0:00:23]} Bd6 {[%emt 0:00:25]} 5. c3 {[%emt 0:00:51]} Nge7 {[%emt 0:01:52]} 6. d4 {[%emt 0:02:17] B30: Sicilian: 2...Nc6 3 Bb5, lines without ...g6.} cxd4 {[%emt 0:01:19]} 7. cxd4 {[%emt 0:00:11]} exd4 {[%emt 0:00:18]} 8. Nxd4 {[%emt 0:00:51] White is slightly better.} O-O {[%emt 0:01:45]} 9. Nc3 {[%emt 0:02:22]} Be5 {[%emt 0:00:44]} 10. Be3 {[%emt 0:03:43]} a6 {[%emt 0:01:33]} (10... d5 $11) 11. Be2 {[%emt 0:02:20] White is more active.} (11. Ba4 $16) 11... d5 $11 {[%emt 0:03:53]} 12. Nxc6 {[%emt 0:02:54]} bxc6 {[%emt 0:00:20] [#]} 13. Bc5 $146 {[%emt 0:02:01]} ({Predecessor:} 13. Bd4 Bd6 14. Bf3 Rb8 15. Re1 c5 16. e5 Nc6 17. exd6 Nxd4 18. Bxd5 Qxd6 19. b3 {0-1 (35) Matinian,N (2491)-Jobava,B (2702) Legnica 2013}) 13... Be6 {[%emt 0:04:16]} 14. Rc1 {[%emt 0:08:01]} Re8 {[%emt 0:01:39]} 15. Bd3 {[%emt 0:07:48]} dxe4 {[%emt 0:11:29]} 16. Bxe4 {[%emt 0:07:38]} Qxd1 {[%emt 0:02:02]} 17. Rfxd1 {[%emt 0:00:34]} Bxc3 {[%emt 0:00:24]} 18. bxc3 {[%emt 0:04:58]} Bd5 {[%emt 0:01:58]} 19. Bxd5 {[%emt 0:07:43]} Nxd5 {[%emt 0:00:17]} 20. c4 {[%emt 0:00:12]} Nf4 {[%emt 0:00:52]} 21. Kf1 {[%emt 0:00:19]} Ne6 {[%emt 0:00:45]} 22. Be3 {[%emt 0:04:16]} Rab8 {[%emt 0:02:35]} 23. Rd3 {[%emt 0:01:08]} c5 {[%emt 0:01:31]} 24. Rd6 {[%emt 0:00:50]} a5 {[%emt 0:01:38]} 25. Ra6 $1 {[%emt 0:00:36]} a4 {[%emt 0:00:25]} 26. Rxa4 {[%emt 0:00:36]} Ra8 {[%emt 0:00:08]} 27. Rxa8 {[%emt 0:00:08]} Rxa8 $16 {[%emt 0:00:05][%mdl 4096] Endgame [#] KRB-KRN} 28. Rc2 {[%emt 0:01:58]} ({Better is} 28. Ra1 $1 $16) 28... Kf8 $11 {[%emt 0:00:33]} 29. Ke2 {[%emt 0:00:32]} Ke7 {[%emt 0:00:07]} 30. g4 {[%emt 0:06:06]} Kd6 {[%emt 0:00:58]} 31. Rd2+ {[%emt 0:00:25]} Kc6 {[%emt 0:00:20]} 32. f4 {[%emt 0:01:36]} Nf8 {[%emt 0:01:56]} 33. f5 {[%emt 0:02:33] With the idea Bf4.} Nd7 {[%emt 0:00:34]} 34. Bf4 {[%emt 0:02:49] Black must now prevent Rd6+.} Nb6 {[%emt 0:00:59]} 35. Rd6+ {[%emt 0:07:30]} Kb7 {[%emt 0:00:20]} 36. Kd3 {[%emt 0:01:39]} Rxa2 {[%emt 0:24:16]} 37. Rd8 {[%emt 0:00:25] aiming for Rf8.} Ra8 {[%emt 0:02:16]} 38. Rxa8 {[%emt 0:00:07]} Nxa8 {[%emt 0:00:05] KB-KN} 39. Be5 {[%emt 0:02:31]} g6 {[%emt 0:02:32]} 40. fxg6 {[%emt 0:02:04]} fxg6 {[%emt 0:00:17]} 41. Bc3 {[%emt 0:08:01]} Nb6 {[%emt 0:01:06]} 42. Ba5 {[%emt 0:00:17]} Nc8 {[%emt 0:02:47]} 43. Ke4 {[%emt 0:02:21] Kd5 is the strong threat.} Kc6 {[%emt 0:00:22]} 44. Ke5 {[%emt 0:01:10]} Nd6 {[%emt 0:00:21]} 45. Kf6 {[%emt 0:00:19]} Nxc4 {[%emt 0:00:51]} 46. Be1 {[%emt 0:00:26]} Kd5 {[%emt 0:00:28] Threatens to win with ...Ne5.} 47. Kg7 {[%emt 0:00:27]} Ne5 {[%emt 0:00:46]} 48. Kxh7 $2 {[%emt 0:02:54][%mdl 8192] [#]} (48. h4 $11) 48... Nxg4 $2 {[%emt 0:00:54]} (48... Nf3 $1 $19 {[%cal Rf3e1]} 49. Bc3 g5) 49. Kxg6 {[%emt 0:00:16]} Nxh2 {[%emt 0:00:07]} 50. Kf5 {[%emt 0:00:18] Weighted Error Value: White=0.29 (precise) /Black=0.25 (precise)} 1/2-1/2